[Event "34th MPL National U12 Chess-ch 2022"]
[Site "Mysore"]
[Date "2022.04.09"]
[Round "1.1"]
[White "Adireddy Arjun"]
[Black "Ratul Majumder"]
[Result "1-0"]
[ECO "C42"]
[WhiteElo "1796"]
[BlackElo "1059"]
[Annotator "NA RC"]
[PlyCount "89"]
[EventDate "2022.04.09"]
[EventCountry "IND"]
[SourceTitle "playchess.com"]
[Source "ChessBase"]
[SourceQuality "1"]
[TimeControl "5400+30"]

1. e4 {[%emt 1:31:00]} e5 {[%emt 1:31:00]} 2. Nf3 {[%emt 0:00:30]} Nf6 3. Nxe5 {[%emt 0:00:30]} d6 4. Nf3 {[%emt 0:00:30]} Nxe4 5. d4 {[%emt 0:00:30]} d5 6. Bd3 {[%emt 0:00:30]} Bd6 7. O-O {[%emt 0:00:30]} O-O {[%emt 0:03:00]} 8. c4 {[%emt 0:00:30]} c6 9. Nc3 {[%emt 0:00:30]} Nxc3 {[%emt 0:01:00]} 10. bxc3 {[%emt 0:00:30]} dxc4 {[%emt 0:00:30]} 11. Bxc4 {[%emt 0:00:30]} Bf5 {[%emt 0:00:30]} 12. Bd3 {[%emt 0:00:30]} Qf6 {[%emt 0:00:30]} 13. Bg5 {[%emt 0:00:30]} Qg6 {[%emt 0:00:30]} 14. Nh4 {[%emt 0:00:30]} Qxg5 {[%emt 0:00:30]} 15. Nxf5 {[%emt 0:00:30]} Bc7 {[%emt 0:00:30]} 16. f4 {[%emt 0:00:30]} Qf6 17. Qf3 {[%emt 0:00:30]} Nd7 {[%emt 0:01:00]} 18. Qh3 {[%emt 0:00:30]} h6 19. Nxg7 {[%emt 0:00:30]} Qxg7 {[%emt 0:01:00]} 20. Qxd7 {[%emt 0:00:30]} Bb6 {[%emt 0:00:30]} 21. Rad1 {[%emt 0:00:30]} Kh8 {[%emt 0:00:30]} 22. Qf5 {[%emt 0:00:30]} Rg8 {[%emt 0:00:30]} 23. g3 Rac8 {[%emt 0:00:30]} 24. Kh1 {[%emt 0:01:00]} c5 {[%emt 0:00:30]} 25. d5 {[%emt 0:00:30]} Rcd8 {[%emt 0:00:30]} 26. Rde1 Ba5 27. Re7 Bxc3 28. Rxf7 Rgf8 29. Qh7+ Qxh7 30. Rxh7+ Kg8 31. Rxb7 Rf7 32. Rxf7 Kxf7 33. Rf2 Kf6 34. Bc4 Re8 35. Re2 Rxe2 36. Bxe2 a5 37. h4 Ke7 38. Kg2 Kd6 39. Bc4 h5 40. Kf3 Be1 41. g4 Bxh4 42. gxh5 Ke7 43. Kg4 Bf6 44. Kf5 Kf7 45. d6+ 1-0

[Event "34th MPL National U12 Chess-ch 2022"]
[Site "Mysore"]
[Date "2022.04.09"]
[Round "1.2"]
[White "Madhav S Nair"]
[Black "Vaz, Ethan"]
[Result "0-1"]
[ECO "A22"]
[WhiteElo "1087"]
[BlackElo "1384"]
[Annotator "NA RC"]
[PlyCount "50"]
[EventDate "2022.04.09"]
[EventCountry "IND"]
[SourceTitle "playchess.com"]
[Source "ChessBase"]
[SourceQuality "1"]
[TimeControl "5400+30"]

1. c4 {[%emt 1:31:00]} e5 {[%emt 1:31:00]} 2. Nc3 {[%emt 0:00:30]} Nf6 {[%emt 0:00:30]} 3. d3 {[%emt 0:00:30]} d5 {[%emt 0:00:30]} 4. cxd5 {[%emt 0:00:30]} Nxd5 {[%emt 0:00:30]} 5. g3 {[%emt 0:00:30]} Nc6 {[%emt 0:00:30]} 6. a3 {[%emt 0:00:30]} Be6 {[%emt 0:00:30]} 7. Bg2 {[%emt 0:00:30]} Nd4 {[%emt 0:00:30]} 8. e3 {[%emt 0:00:30]} Nxc3 {[%emt 0:00:30]} 9. bxc3 {[%emt 0:00:30]} Bb3 {[%emt 0:00:30]} 10. Qh5 {[%emt 0:00:30]} Nc2+ {[%emt 0:00:30]} 11. Kd2 {[%emt 0:00:30]} Nxa1 {[%emt 0:00:30]} 12. Bb2 {[%emt 0:00:30]} Bc4 {[%emt 0:00:30]} 13. Qxe5+ {[%emt 0:00:30]} Be7 {[%emt 0:00:30]} 14. Qd4 {[%emt 0:00:30]} Nb3+ {[%emt 0:00:30]} 15. Kc2 {[%emt 0:00:30]} Nxd4+ {[%emt 0:00:30]} 16. cxd4 {[%emt 0:00:30]} Ba6 {[%emt 0:00:30]} 17. Ne2 {[%emt 0:00:30]} c5 {[%emt 0:00:30]} 18. Nf4 {[%emt 0:00:30]} cxd4 {[%emt 0:00:30]} 19. Bxd4 {[%emt 0:00:30]} Bf6 {[%emt 0:00:30]} 20. Bxf6 {[%emt 0:00:30]} Qxf6 {[%emt 0:00:30]} 21. Rb1 {[%emt 0:00:30]} g5 {[%emt 0:00:30]} 22. Nh3 {[%emt 0:00:30]} Rc8+ {[%emt 0:00:30]} 23. Kd1 {[%emt 0:00:30]} Bxd3 {[%emt 0:00:30]} 24. Rxb7 {[%emt 0:00:30]} Qc3 {[%emt 0:00:30]} 25. Bf3 {[%emt 0:00:30]} Qc1# {[%emt 0:00:30]} 0-1

[Event "34th MPL National U12 Chess-ch 2022"]
[Site "Mysore"]
[Date "2022.04.09"]
[Round "1.3"]
[White "Mrinmoy Rajkhowa"]
[Black "Sahrudh M P"]
[Result "1-0"]
[ECO "B35"]
[WhiteElo "1634"]
[BlackElo "1087"]
[Annotator "NA RC"]
[PlyCount "87"]
[EventDate "2022.04.09"]
[EventCountry "IND"]
[SourceTitle "playchess.com"]
[Source "ChessBase"]
[SourceQuality "1"]
[TimeControl "5400+30"]

1. e4 {[%emt 1:31:00]} c5 {[%emt 1:31:00]} 2. Nf3 {[%emt 0:00:30]} g6 3. d4 {[%emt 0:00:30]} cxd4 {[%emt 0:01:00]} 4. Nxd4 {[%emt 0:00:30]} Bg7 {[%emt 0:00:30]} 5. Nc3 {[%emt 0:00:30]} Nc6 {[%emt 0:00:30]} 6. Be3 {[%emt 0:00:30]} Nf6 {[%emt 0:00:30]} 7. Bc4 {[%emt 0:00:30]} O-O {[%emt 0:00:30]} 8. Bb3 {[%emt 0:00:30]} Qc7 {[%emt 0:00:30]} 9. f3 {[%emt 0:00:30]} a6 {[%emt 0:00:30]} 10. Qd2 {[%emt 0:00:30]} b5 {[%emt 0:00:30]} 11. O-O-O {[%emt 0:00:30]} Bb7 {[%emt 0:00:30]} 12. h4 {[%emt 0:00:30]} h5 {[%emt 0:00:30]} 13. Kb1 {[%emt 0:00:30]} Rfd8 {[%emt 0:00:30]} 14. g4 {[%emt 0:00:30]} e6 {[%emt 0:00:30]} 15. Qf2 {[%emt 0:00:30]} hxg4 {[%emt 0:00:30]} 16. Nxc6 {[%emt 0:00:30]} Qxc6 {[%emt 0:00:30]} 17. Bg5 {[%emt 0:00:30]} Rdc8 {[%emt 0:00:30]} 18. h5 {[%emt 0:00:30]} Nh7 {[%emt 0:00:30]} 19. Bh6 {[%emt 0:00:30]} g5 {[%emt 0:00:30]} 20. Bxg7 Kxg7 21. Qd4+ {[%emt 0:01:00]} Nf6 {[%emt 0:01:00]} 22. h6+ {[%emt 0:00:30]} Kg6 {[%emt 0:00:30]} 23. e5 {[%emt 0:00:30]} gxf3 24. exf6 {[%emt 0:00:30]} e5 {[%emt 0:01:00]} 25. Qxd7 {[%emt 0:00:30]} Qxd7 {[%emt 0:00:30]} 26. Rxd7 {[%emt 0:00:30]} g4 {[%emt 0:00:30]} 27. Rxb7 {[%emt 0:00:30]} Kf5 {[%emt 0:00:30]} 28. Bd5 {[%emt 0:00:30]} Rab8 {[%emt 0:00:30]} 29. Rxb8 {[%emt 0:00:30]} Rxb8 30. h7 {[%emt 0:00:30]} Rh8 {[%emt 0:01:00]} 31. Ne4 {[%emt 0:00:30]} Kf4 {[%emt 0:00:30]} 32. Kc1 {[%emt 0:00:30]} Ke3 {[%emt 0:00:30]} 33. Kd1 {[%emt 0:00:30]} f2 {[%emt 0:00:30]} 34. Nxf2 {[%emt 0:00:30]} Kxf2 {[%emt 0:00:30]} 35. Bxf7 {[%emt 0:00:30]} g3 {[%emt 0:00:30]} 36. Bg8 {[%emt 0:00:30]} g2 {[%emt 0:00:30]} 37. Rh2 {[%emt 0:00:30]} e4 {[%emt 0:00:30]} 38. f7 {[%emt 0:00:30]} e3 39. f8=Q+ {[%emt 0:00:30]} Kg1 {[%emt 0:01:00]} 40. Qf4 {[%emt 0:00:30]} e2+ {[%emt 0:00:30]} 41. Kxe2 {[%emt 0:00:30]} a5 {[%emt 0:00:30]} 42. Qg3 {[%emt 0:00:30]} Rxg8 {[%emt 0:00:30]} 43. hxg8=R {[%emt 0:00:30]} a4 {[%emt 0:00:30]} 44. Qxg2# {[%emt 0:00:30]} 1-0

[Event "34th MPL National U12 Chess-ch 2022"]
[Site "Mysore"]
[Date "2022.04.09"]
[Round "1.5"]
[White "Tanmay Rajbongshi"]
[Black "Abhiraj De"]
[Result "1-0"]
[ECO "B22"]
[WhiteElo "1516"]
[BlackElo "1085"]
[Annotator "NA RC"]
[PlyCount "62"]
[EventDate "2022.04.09"]
[EventCountry "IND"]
[SourceTitle "playchess.com"]
[Source "ChessBase"]
[SourceQuality "1"]
[TimeControl "5400+30"]

1. e4 c5 2. Nf3 {[%emt 1:31:30]} Nc6 3. c3 {[%emt 0:00:30]} e6 4. d4 {[%emt 0:00:30]} d5 {[%emt 1:32:30]} 5. exd5 {[%emt 0:00:30]} exd5 {[%emt 0:00:30]} 6. Bb5 {[%emt 0:00:30]} Nf6 {[%emt 0:00:30]} 7. O-O {[%emt 0:00:30]} Be7 {[%emt 0:00:30]} 8. dxc5 {[%emt 0:00:30]} Bxc5 {[%emt 0:00:30]} 9. Bg5 {[%emt 0:00:30]} Be6 {[%emt 0:00:30]} 10. Ne5 {[%emt 0:00:30]} Qc7 {[%emt 0:00:30]} 11. Bf4 {[%emt 0:00:30]} Bd6 {[%emt 0:00:30]} 12. Re1 {[%emt 0:00:30]} O-O {[%emt 0:00:30]} 13. Bxc6 bxc6 14. Nd2 {[%emt 0:01:00]} Ng4 {[%emt 0:01:00]} 15. Ndf3 {[%emt 0:00:30]} Nxe5 {[%emt 0:00:30]} 16. Bxe5 {[%emt 0:00:30]} Bg4 {[%emt 0:00:30]} 17. Qd3 {[%emt 0:00:30]} Bxf3 {[%emt 0:00:30]} 18. Bxd6 {[%emt 0:00:30]} Qxd6 {[%emt 0:00:30]} 19. Qxf3 {[%emt 0:00:30]} Rae8 20. g3 {[%emt 0:00:30]} Re6 {[%emt 0:01:00]} 21. Re3 {[%emt 0:00:30]} Rfe8 22. Rae1 {[%emt 0:00:30]} g6 23. b4 {[%emt 0:00:30]} a6 {[%emt 0:01:30]} 24. a4 {[%emt 0:00:30]} Rxe3 25. Rxe3 {[%emt 0:00:30]} Rxe3 26. Qxe3 Qe6 27. Qd3 {[%emt 0:01:00]} Qe1+ {[%emt 0:02:00]} 28. Kg2 {[%emt 0:00:30]} Qe4+ {[%emt 0:00:30]} 29. Qxe4 {[%emt 0:00:30]} dxe4 {[%emt 0:00:30]} 30. c4 {[%emt 0:00:30]} Kf8 31. b5 {[%emt 0:00:30]} e3 {[%emt 0:01:00]} 1-0

[Event "34th MPL National U12 Chess-ch 2022"]
[Site "Mysore"]
[Date "2022.04.09"]
[Round "1.6"]
[White "Rudransh Khare"]
[Black "Jain, Kushagra"]
[Result "0-1"]
[ECO "D02"]
[WhiteElo "1078"]
[BlackElo "1452"]
[Annotator "NA RC"]
[PlyCount "48"]
[EventDate "2022.04.09"]
[EventCountry "IND"]
[SourceTitle "playchess.com"]
[Source "ChessBase"]
[SourceQuality "1"]
[TimeControl "5400+30"]

1. d4 {[%emt 1:31:00]} Nf6 2. Bf4 {[%emt 0:00:30]} d5 {[%emt 1:31:30]} 3. e3 {[%emt 0:00:30]} c5 {[%emt 0:00:30]} 4. c3 Nc6 {[%emt 0:00:30]} 5. Nd2 {[%emt 0:01:00]} Qb6 {[%emt 0:00:30]} 6. Qb3 {[%emt 0:00:30]} c4 {[%emt 0:00:30]} 7. Qxb6 {[%emt 0:00:30]} axb6 {[%emt 0:00:30]} 8. Ngf3 {[%emt 0:00:30]} e6 {[%emt 0:00:30]} 9. Be2 {[%emt 0:00:30]} b5 {[%emt 0:00:30]} 10. O-O {[%emt 0:00:30]} b4 {[%emt 0:00:30]} 11. h3 {[%emt 0:00:30]} Bd7 {[%emt 0:00:30]} 12. Ne5 {[%emt 0:00:30]} Be7 {[%emt 0:00:30]} 13. Nxd7 {[%emt 0:00:30]} Kxd7 {[%emt 0:00:30]} 14. Bf3 {[%emt 0:00:30]} Ra5 {[%emt 0:00:30]} 15. e4 {[%emt 0:00:30]} Rha8 {[%emt 0:00:30]} 16. exd5 {[%emt 0:00:30]} exd5 {[%emt 0:00:30]} 17. Bg5 {[%emt 0:00:30]} h6 {[%emt 0:00:30]} 18. Bxf6 {[%emt 0:00:30]} Bxf6 19. Rfc1 {[%emt 0:00:30]} Kd6 {[%emt 0:01:00]} 20. cxb4 {[%emt 0:00:30]} Rxa2 {[%emt 0:00:30]} 21. Rxa2 {[%emt 0:00:30]} Rxa2 {[%emt 0:00:30]} 22. Nxc4+ {[%emt 0:00:30]} dxc4 {[%emt 0:00:30]} 23. Bxc6 {[%emt 0:00:30]} bxc6 {[%emt 0:00:30]} 24. Rxc4 {[%emt 0:00:30]} Rxb2 {[%emt 0:00:30]} 0-1

[Event "34th MPL National U12 Chess-ch 2022"]
[Site "Mysore"]
[Date "2022.04.09"]
[Round "2.1"]
[White "Joseph Tom"]
[Black "Adireddy Arjun"]
[Result "0-1"]
[ECO "B50"]
[WhiteElo "1227"]
[BlackElo "1796"]
[Annotator "NA RC"]
[PlyCount "66"]
[EventDate "2022.04.09"]
[EventCountry "IND"]
[SourceTitle "playchess.com"]
[Source "ChessBase"]
[SourceQuality "1"]
[TimeControl "5400+30"]

1. e4 {[%emt 0:00:18]} c5 {[%emt 0:00:11]} 2. Nf3 {[%emt 0:00:33]} d6 {[%emt 0:00:07]} 3. c3 {[%emt 0:00:11]} Nf6 {[%emt 0:03:04]} 4. Be2 {[%emt 0:01:26]} Nbd7 {[%emt 0:03:17]} 5. d3 {[%emt 0:00:37]} g6 {[%emt 0:03:50]} 6. O-O {[%emt 0:01:10]} Bg7 {[%emt 0:00:17]} 7. Nbd2 {[%emt 1:29:45]} O-O {[%emt 0:01:26]} 8. Re1 {[%emt 0:00:00]} b6 {[%emt 0:06:12]} 9. Bf1 {[%emt 0:00:00]} e5 {[%emt 0:01:34]} 10. d4 {[%emt 0:00:00]} Bb7 {[%emt 0:07:37]} 11. d5 {[%emt 0:00:00]} Ne8 {[%emt 0:01:51]} 12. g3 {[%emt 0:00:00]} Nc7 {[%emt 0:08:19]} 13. c4 {[%emt 0:00:00]} Bc8 {[%emt 0:08:15]} 14. Bg2 {[%emt 0:00:00]} f5 {[%emt 0:01:26]} 15. Nf1 {[%emt 0:00:00]} fxe4 {[%emt 0:09:32]} 16. Ng5 {[%emt 0:00:00]} b5 {[%emt 0:05:01]} 17. Nxe4 {[%emt 0:00:00]} Nb6 {[%emt 0:03:38]} 18. Bg5 {[%emt 0:00:00]} Qd7 {[%emt 0:00:22]} 19. Nxc5 {[%emt 0:00:00]} dxc5 {[%emt 0:00:02]} 20. d6 {[%emt 0:00:00]} Ne6 {[%emt 0:02:29]} 21. Be7 {[%emt 0:00:00]} Bb7 {[%emt 0:00:10]} 22. Bxf8 {[%emt 0:00:00]} Rxf8 {[%emt 0:00:55]} 23. Bxb7 {[%emt 0:00:00]} Qxb7 {[%emt 0:00:02]} 24. h4 {[%emt 0:00:00]} Nd4 {[%emt 0:00:40]} 25. Nh2 {[%emt 0:00:00]} Nxc4 {[%emt 0:00:13]} 26. b3 {[%emt 0:00:00]} Nxd6 {[%emt 0:00:07]} 27. Re3 {[%emt 0:00:00]} e4 {[%emt 0:02:14]} 28. Rc1 {[%emt 0:00:00]} Bh6 {[%emt 0:00:38]} 29. Rxc5 {[%emt 0:00:00]} Bxe3 {[%emt 0:00:12]} 30. fxe3 {[%emt 0:00:00]} Nf3+ {[%emt 0:00:51]} 31. Nxf3 {[%emt 0:00:00]} exf3 {[%emt 0:00:05]} 32. Qxd6 {[%emt 0:00:00]} f2+ {[%emt 0:00:04]} 33. Kh2 {[%emt 0:00:00]} Qh1+ {[%emt 0:00:14]} 0-1

[Event "34th MPL National U12 Chess-ch 2022"]
[Site "Mysore"]
[Date "2022.04.09"]
[Round "2.2"]
[White "Vaz, Ethan"]
[Black "Anshul Panicker"]
[Result "1-0"]
[ECO "B16"]
[WhiteElo "1384"]
[BlackElo "1220"]
[Annotator "NA RC"]
[PlyCount "59"]
[EventDate "2022.04.09"]
[EventCountry "IND"]
[SourceTitle "playchess.com"]
[Source "ChessBase"]
[SourceQuality "1"]
[TimeControl "5400+30"]

1. e4 {[%emt 0:00:04]} c6 {[%emt 0:00:07]} 2. d4 {[%emt 0:00:21]} d5 {[%emt 0:00:05]} 3. Nc3 {[%emt 0:01:00]} dxe4 {[%emt 0:00:09]} 4. Nxe4 {[%emt 0:00:10]} Nf6 {[%emt 0:00:20]} 5. Nxf6+ {[%emt 0:01:01]} gxf6 {[%emt 0:00:19]} 6. Nf3 {[%emt 0:01:09]} Bf5 {[%emt 0:00:10]} 7. Bc4 {[%emt 0:07:32]} e6 {[%emt 0:02:37]} 8. Qe2 {[%emt 0:06:44]} Nd7 {[%emt 0:06:04]} 9. Nh4 {[%emt 0:06:42]} Bg6 {[%emt 0:01:49]} 10. c3 {[%emt 0:04:17]} Nb6 {[%emt 0:03:25]} 11. Bb3 {[%emt 0:01:29]} Bd6 {[%emt 0:02:15]} 12. O-O {[%emt 0:05:22]} Qc7 {[%emt 0:05:03]} 13. h3 {[%emt 0:06:35]} O-O-O {[%emt 0:05:29]} 14. Rd1 {[%emt 0:04:44]} Bf4 {[%emt 0:05:23]} 15. Qf3 {[%emt 0:11:19]} Bxc1 {[%emt 0:04:16]} 16. Raxc1 {[%emt 0:00:43]} f5 {[%emt 0:02:15]} 17. c4 {[%emt 0:03:29]} Qe7 {[%emt 0:06:53]} 18. Nxg6 {[%emt 0:02:01]} fxg6 {[%emt 0:07:31]} 19. d5 {[%emt 0:02:20]} c5 {[%emt 0:00:41]} 20. Qe3 {[%emt 0:04:52]} Rhe8 {[%emt 0:05:26]} 21. dxe6 {[%emt 0:05:04]} Rxd1+ {[%emt 0:02:13]} 22. Rxd1 {[%emt 0:01:09]} Qxe6 {[%emt 0:00:36]} 23. Qxc5+ {[%emt 0:00:30]} Qc6 {[%emt 0:00:51]} 24. Qd4 {[%emt 0:02:12]} Qe4 {[%emt 0:02:09]} 25. Qd2 {[%emt 0:07:02]} a6 {[%emt 0:08:10]} 26. c5 {[%emt 0:02:26]} Na8 {[%emt 0:00:38]} 27. Bf7 {[%emt 0:04:19]} Rf8 {[%emt 0:03:49]} 28. Qd7+ {[%emt 0:00:09]} Kb8 {[%emt 0:00:23]} 29. Qd6+ {[%emt 0:00:27]} Ka7 {[%emt 0:01:00]} 30. Qxf8 {[%emt 0:00:08]} 1-0

[Event "34th MPL National U12 Chess-ch 2022"]
[Site "Mysore"]
[Date "2022.04.09"]
[Round "2.4"]
[White "Gaikwad Manas"]
[Black "Sai Abhinav Kuchibhotla"]
[Result "1-0"]
[ECO "C01"]
[WhiteElo "1698"]
[BlackElo "1194"]
[Annotator "NA RC"]
[PlyCount "107"]
[EventDate "2022.04.09"]
[EventCountry "IND"]
[SourceTitle "playchess.com"]
[Source "ChessBase"]
[SourceQuality "1"]
[TimeControl "5400+30"]

1. e4 {[%emt 0:00:31]} e6 {[%emt 0:00:12]} 2. d4 {[%emt 0:00:05]} d5 {[%emt 0:00:29]} 3. exd5 {[%emt 0:00:04]} exd5 {[%emt 0:00:18]} 4. Bd3 {[%emt 0:00:13]} Nc6 {[%emt 0:01:06]} 5. c3 {[%emt 0:00:14]} Bd6 {[%emt 0:00:26]} 6. Qc2 {[%emt 0:00:40]} Nf6 {[%emt 0:00:34]} 7. Bg5 {[%emt 0:00:27]} h6 {[%emt 0:00:08]} 8. Bh4 {[%emt 0:00:03]} O-O {[%emt 0:00:50]} 9. Nd2 {[%emt 0:00:08]} Bd7 {[%emt 0:03:30]} 10. Ne2 {[%emt 0:01:00]} Re8 {[%emt 0:00:12]} 11. O-O-O {[%emt 0:00:06]} Rb8 {[%emt 0:01:14]} 12. f3 {[%emt 0:16:46]} b5 {[%emt 0:02:21]} 13. g4 {[%emt 0:00:39]} b4 {[%emt 0:00:24]} 14. c4 {[%emt 0:00:18]} Re3 {[%emt 0:01:42]} 15. Nb3 {[%emt 0:09:31]} a5 {[%emt 0:04:19]} 16. cxd5 {[%emt 0:01:02]} Ne7 {[%emt 0:00:51]} 17. Qd2 {[%emt 0:06:14]} Nfxd5 {[%emt 0:02:02]} 18. Be4 {[%emt 0:00:40]} g5 {[%emt 0:04:19]} 19. Bf2 {[%emt 0:03:44]} Rxb3 {[%emt 1:15:03]} 20. axb3 {[%emt 0:58:05]} a4 {[%emt 0:00:00]} 21. h4 {[%emt 0:00:00]} Bf4 {[%emt 0:00:00]} 22. Nxf4 {[%emt 0:00:00]} gxf4 {[%emt 0:00:00]} 23. Bb1 {[%emt 0:00:00]} a3 {[%emt 0:00:00]} 24. Qd3 {[%emt 0:00:00]} f5 {[%emt 0:00:00]} 25. gxf5 {[%emt 0:00:00]} Bxf5 {[%emt 0:00:00]} 26. Qc4 {[%emt 0:00:00]} Rb6 {[%emt 0:00:00]} 27. Rhg1+ {[%emt 0:00:00]} Kh8 {[%emt 0:00:00]} 28. Bxf5 {[%emt 0:00:00]} Rc6 {[%emt 0:00:00]} 29. Be6 {[%emt 0:00:00]} Rxc4+ {[%emt 0:00:00]} 30. bxc4 {[%emt 0:00:00]} Nf6 {[%emt 0:00:00]} 31. d5 {[%emt 0:00:00]} Qa8 {[%emt 0:00:00]} 32. Bd4 {[%emt 0:06:00]} Qf8 {[%emt 0:00:00]} 33. bxa3 {[%emt 0:00:00]} bxa3 {[%emt 0:00:00]} 34. Bc3 {[%emt 0:00:00]} a2 {[%emt 0:00:00]} 35. d6 {[%emt 0:00:00]} cxd6 {[%emt 0:00:00]} 36. Rxd6 {[%emt 0:00:00]} Kh7 {[%emt 0:00:00]} 37. c5 {[%emt 0:00:00]} Qb8 {[%emt 0:00:00]} 38. Bxa2 {[%emt 0:00:00]} Qa7 {[%emt 0:00:00]} 39. Rxf6 {[%emt 0:00:00]} Qa3+ {[%emt 0:00:00]} 40. Bb2 {[%emt 0:00:00]} Qxc5+ {[%emt 0:00:00]} 41. Kd2 {[%emt 0:00:00]} Qf2+ {[%emt 0:00:00]} 42. Kc3 {[%emt 0:00:00]} Qc5+ {[%emt 0:00:00]} 43. Bc4 {[%emt 0:00:00]} Nd5+ {[%emt 0:00:00]} 44. Kd2 {[%emt 0:00:00]} Qf2+ {[%emt 0:00:00]} 45. Kd3 {[%emt 0:00:00]} Qxf3+ {[%emt 0:00:00]} 46. Kc2 {[%emt 0:00:00]} Ne3+ {[%emt 0:00:00]} 47. Kc1 {[%emt 0:00:00]} Ng4 {[%emt 0:00:00]} 48. Rf7+ {[%emt 0:00:00]} Kg6 {[%emt 0:00:00]} 49. Rg7+ {[%emt 0:00:00]} Kh5 {[%emt 0:00:00]} 50. R7xg4 {[%emt 0:00:00]} Qxg4 {[%emt 0:00:00]} 51. Rxg4 {[%emt 0:00:00]} Kxg4 {[%emt 0:00:00]} 52. Bf6 {[%emt 0:00:00]} f3 {[%emt 0:00:00]} 53. Kd2 {[%emt 0:00:00]} Kg3 {[%emt 0:00:00]} 54. Ke3 {[%emt 0:11:00]} 1-0

[Event "34th MPL National U12 Chess-ch 2022"]
[Site "Mysore"]
[Date "2022.04.09"]
[Round "2.5"]
[White "Satyaki G Gokul"]
[Black "Tanmay Rajbongshi"]
[Result "0-1"]
[ECO "B32"]
[WhiteElo "1210"]
[BlackElo "1516"]
[Annotator "NA RC"]
[PlyCount "150"]
[EventDate "2022.04.09"]
[EventCountry "IND"]
[SourceTitle "playchess.com"]
[Source "ChessBase"]
[SourceQuality "1"]
[TimeControl "5400+30"]

1. e4 {[%emt 0:00:04]} c5 {[%emt 0:00:08]} 2. Nf3 {[%emt 0:00:08]} Nc6 {[%emt 0:00:05]} 3. d4 {[%emt 0:00:10]} cxd4 {[%emt 0:00:12]} 4. Nxd4 {[%emt 0:00:18]} e5 {[%emt 0:00:06]} 5. Nb5 {[%emt 0:00:20]} a6 {[%emt 0:00:27]} 6. Nd6+ {[%emt 0:00:16]} Bxd6 {[%emt 0:00:06]} 7. Qxd6 {[%emt 0:00:08]} Qf6 {[%emt 0:00:08]} 8. Qxf6 {[%emt 0:00:40]} Nxf6 {[%emt 0:00:07]} 9. Nc3 {[%emt 0:00:06]} d5 {[%emt 0:00:59]} 10. exd5 {[%emt 0:01:24]} Nb4 {[%emt 0:00:22]} 11. Bd3 {[%emt 0:00:08]} Nxd3+ {[%emt 0:00:39]} 12. cxd3 {[%emt 0:00:11]} b5 {[%emt 0:00:27]} 13. a3 {[%emt 0:03:16]} Bb7 {[%emt 0:01:11]} 14. O-O {[%emt 0:00:39]} O-O {[%emt 0:02:23]} 15. Re1 {[%emt 0:01:22]} Rfe8 {[%emt 0:01:01]} 16. Ne4 {[%emt 0:01:05]} Bxd5 {[%emt 0:01:12]} 17. Bg5 {[%emt 0:01:40]} Nxe4 {[%emt 1:29:27]} 18. dxe4 {[%emt 0:00:39]} Bc4 {[%emt 0:00:00]} 19. Be3 {[%emt 0:01:19]} f6 {[%emt 0:00:00]} 20. Bc5 {[%emt 0:00:54]} Rad8 {[%emt 0:00:00]} 21. Rad1 {[%emt 0:03:39]} Bb3 {[%emt 0:00:00]} 22. Rd6 {[%emt 0:01:39]} Rxd6 {[%emt 0:00:00]} 23. Bxd6 {[%emt 0:00:07]} Rd8 {[%emt 0:00:00]} 24. Bb4 {[%emt 0:00:42]} Kf7 {[%emt 0:00:00]} 25. Rc1 {[%emt 0:02:26]} Kg6 {[%emt 0:00:00]} 26. f3 {[%emt 0:01:44]} Bc4 {[%emt 0:00:00]} 27. Kf2 {[%emt 0:01:29]} Rd3 {[%emt 0:00:00]} 28. Re1 {[%emt 0:00:51]} Rb3 {[%emt 0:00:00]} 29. Bc3 {[%emt 0:01:06]} a5 {[%emt 0:00:00]} 30. Bxa5 {[%emt 0:01:19]} Rxb2+ {[%emt 0:00:00]} 31. Kg3 {[%emt 0:00:11]} h5 {[%emt 0:00:00]} 32. h4 {[%emt 0:02:27]} Kf7 {[%emt 0:00:00]} 33. Rd1 {[%emt 0:01:48]} g5 {[%emt 0:00:00]} 34. hxg5 {[%emt 0:01:28]} fxg5 {[%emt 0:00:00]} 35. Rd2 {[%emt 0:01:41]} Rb3 {[%emt 0:00:00]} 36. Bb4 {[%emt 0:00:54]} Bd3 {[%emt 0:00:00]} 37. Kf2 {[%emt 0:01:41]} Kf6 {[%emt 0:00:00]} 38. Rd1 {[%emt 0:05:01]} g4 {[%emt 0:00:00]} 39. Bc5 {[%emt 0:01:42]} h4 {[%emt 0:00:00]} 40. fxg4 {[%emt 0:01:45]} Kg5 {[%emt 0:00:00]} 41. Be7+ {[%emt 0:02:01]} Kf4 {[%emt 0:00:00]} 42. Bxh4 {[%emt 0:01:33]} Bxe4 {[%emt 0:00:00]} 43. Bf6 {[%emt 0:01:05]} Rb2+ {[%emt 0:00:00]} 44. Ke1 {[%emt 0:01:58]} Rxg2 {[%emt 0:00:00]} 45. Rd2 {[%emt 0:01:15]} Rg1+ {[%emt 0:00:00]} 46. Kf2 {[%emt 0:01:56]} Rxg4 {[%emt 0:00:00]} 47. Re2 {[%emt 0:00:44]} Rg6 {[%emt 0:00:00]} 48. Bh8 {[%emt 0:00:43]} Rh6 {[%emt 0:00:00]} 49. Bg7 {[%emt 0:00:17]} Rh3 {[%emt 0:00:00]} 50. Bf8 {[%emt 0:03:33]} Bf3 {[%emt 0:00:00]} 51. Rd2 {[%emt 0:02:56]} Be4 {[%emt 0:00:00]} 52. Rd7 {[%emt 0:09:30]} Bf5 {[%emt 0:00:00]} 53. Rd5 {[%emt 0:03:59]} Rh2+ {[%emt 0:00:00]} 54. Ke1 {[%emt 0:00:55]} Be4 {[%emt 0:00:00]} 55. Rxb5 {[%emt 0:00:34]} Bd3 {[%emt 0:00:00]} 56. Rb4+ {[%emt 0:00:40]} Kf3 {[%emt 0:00:00]} 57. Bd6 {[%emt 0:03:01]} Re2+ {[%emt 0:00:00]} 58. Kd1 {[%emt 0:00:14]} e4 {[%emt 0:00:00]} 59. Rb8 {[%emt 0:00:26]} Ra2 {[%emt 0:00:00]} 60. Rf8+ {[%emt 0:00:47]} Kg4 {[%emt 0:00:00]} 61. Bc5 {[%emt 0:01:21]} Be2+ {[%emt 0:00:00]} 62. Kc1 {[%emt 0:01:25]} Bf3 {[%emt 0:00:00]} 63. Rg8+ {[%emt 0:00:25]} Kf5 {[%emt 0:00:00]} 64. Re8 {[%emt 0:00:30]} Be2 {[%emt 0:00:00]} 65. Bd6 {[%emt 0:02:09]} Bd3 {[%emt 0:00:00]} 66. Bb4 {[%emt 0:00:50]} Kg4 {[%emt 0:00:00]} 67. Rg8+ {[%emt 0:00:51]} Kf3 {[%emt 0:00:00]} 68. Bd2 {[%emt 0:04:59]} e3 {[%emt 0:00:00]} 69. Bxe3 {[%emt 0:00:05]} Kxe3 {[%emt 0:00:00]} 70. Re8+ {[%emt 0:00:27]} Kd4 {[%emt 0:00:00]} 71. Rc8 {[%emt 0:02:35]} Bc4 {[%emt 0:00:09]} 72. Rh8 {[%emt 0:00:12]} Kc3 {[%emt 0:00:36]} 73. Kb1 {[%emt 0:00:30]} Rxa3 {[%emt 0:00:57]} 74. Rc8 {[%emt 0:00:36]} Ra7 {[%emt 0:00:15]} 75. Rc6 {[%emt 0:00:21]} Rh7 {[%emt 0:00:19]} 0-1